Workbook

Sheet 运营计划
A1: 2016年运营计划
A2: 方向策略 | B2: 年度发展重点 | C2: 把用户体验和产品线研发放在首位，提供最优质的产品，销售只是水到渠成的事情
B3: 季度发展重点 | O3: 汇总
A4: 月份 | C4: 1月 | D4: 2月 | E4: 3月 | F4: 4月 | G4: 5月 | H4: 6月 | I4: 7月 | J4: 8月 | K4: 9月 | L4: 10月 | M4: 11月 | N4: 12月
A5: 日均销售额
A6: 销售目标 | B6: 常规销售额（万）
B7: 聚划算销售额（万）
B8: 店铺UV
B9: 客单价
B10: 转化率
B11: 销售笔数
A12: 流量占比 | B12: 自然搜索流量
B13: 直通车
B14: 钻展硬广
B15: 淘客
B16: 站外
B17: 其他流量
A18: 营销费用 | B18: 直通车
B19: 钻展硬广
B20: 淘客
B21: 站外
B22: 赠品
B23: 其他
A24: 活动 | B24: 活动策划
B25: 折扣力度
A26: 货品 | B26: 在线SPU数
B27: 动销率
B28: 上新数
A29: 人力资源 | B29: 产品开发人员
B30: 运营
B31: 客服
B32: 设计
B33: 推广
B34: 策划
B35: 摄影
B36: 视频制作
B37: 会计
B38: 商务

Sheet 店铺年度运营规划
A1: 2016年运营规划
A2: 方向策略 | B2: 年度发展重点 | C2: 把用户体验和产品线研发放在首位，提供给用户最优质的产品，销售只是水到渠成的事情
B3: 季度重点 | C3: Q1重点 | F3: Q2重点 | I3: Q3重点 | L3: Q4重点 | O3: 汇总
A4: 月份 | C4: 1月 | D4: 2月 | E4: 3月 | F4: 4月 | G4: 5月 | H4: 6月 | I4: 7月 | J4: 8月 | K4: 9月 | L4: 10月 | M4: 11月 | N4: 12月
A5: 日均销售额
A6: 营销目标 | B6: 常规销售额（万）
B7: 聚划算销售额（万）
B8: 店铺UV
B9: 客单价（元）
B10: 销售笔数
B11: 转化率
A12: 流量占比 | B12: 自然搜索流量
B13: 直通车
B14: 钻展硬广
B15: 淘客
B16: 站外
B17: 其他免费流量
A18: 营销费用 （万元） | B18: 直通车
B19: 钻展硬广
B20: 淘客
B21: 站外
B22: 老客户、礼品
B23: 其他
A24: 活动促销 | B24: 活动主题
B25: 折扣力度
A26: 货品 | B26: 在线SPU数
B27: 动销率
B28: 售罄率
B29: 上新数
A30: 人员配置 （人） | B30: 产品开发相关人员
B31: 运营
B32: 客服
B33: 物流
B34: 美工
B35: 推广
B36: 行政
B37: 财务

Sheet 店铺常规月度运营计划
A1: 部门 | B1: 时间 | D1: 2016年9月份运营计划
D2: 1 | E2: 2 | F2: 3 | G2: 4 | H2: 5 | I2: 6 | J2: 7 | K2: 8 | L2: 9 | M2: 10 | N2: 实际完成 | V2: 11 | W2: 12 | X2: 13 | Y2: 14 | Z2: 15 | AA2: 16 | AB2: 17 | AC2: 实际完成 | AK2: 18 | AL2: 19 | AM2: 20 | AN2: 21 | AO2: 22 | AP2: 23 | AQ2: 24 | AR2: 25 | AS2: 26 | AT2: 27 | AU2: 28 | AV2: 29 | AW2: 30 | AX2: 实际完成
A3: 目标 | B3: 总目标 | D3: 500000
B4: 阶段 | D4: 第一阶段 | V4: 第二阶段 | AK4: 第三阶段
B5: 阶段销售目标
B6: 阶段访客目标
B7: 阶段客单目标
B8: 阶段转化率目标
B9: 聚划算销量目标
A10: 货品 | B10: 结构
B11: 主推商品（货号）
A12: 策划 | B12: 活动
A13: 视觉（提早制作） | B13: 首页
B14: 专辑
B15: banner
B16: 活动页
B17: 宝贝分类页
B18: 宝贝搜索页
B19: 详情页
A20: 引流 | B20: 时间 | D20: 1 | E20: 2 | F20: 3 | G20: 4 | H20: 5 | I20: 6 | J20: 7 | K20: 8 | L20: 9 | M20: 10 | N20: 投入 | R20: 流量 | V20: 11 | W20: 12 | X20: 13 | Y20: 14 | Z20: 15 | AA20: 16 | AB20: 17 | AC20: 投入 | AG20: 流量 | AK20: 18 | AL20: 19 | AM20: 20 | AN20: 21 | AO20: 22 | AP20: 23 | AQ20: 24 | AR20: 25 | AS20: 26 | AT20: 27 | AU20: 28 | AV20: 29 | AW20: 30 | AX20: 投入 | BB20: 流量
B21: 推广渠道 | C21: 月度总流量分解 | D21: 阶段目标流量 | N21: 预算 | P21: 实际 | R21: 预估 | T21: 实际 | V21: 阶段目标流量 | AC21: 预算 | AE21: 实际 | AG21: 预估 | AI21: 实际 | AK21: 阶段目标流量 | AX21: 预算 | AZ21: 实际 | BB21: 预估 | BD21: 实际
B23: 免费流量
B24: 钻展
B25: 直通车
B26: 淘客
B27: 活动
B28: 其他
B29: 合计

Sheet 主推商品、新品测试监控表
A1: 品类 | B1: 货品名称 | C1: 货号 | D1: 上架时间 | E1: 定价 | F1: 销售价区间 | G1: 主要推广方式 | H1: 详情 | I1: 第一周
I2: 9-1 | J2: 9-2 | K2: 9-3 | L2: 9-4 | M2: 9-5 | N2: 9-6 | O2: 9-7
I3: 周一 | J3: 周二 | K3: 周三 | L3: 周四 | M3: 周五 | N3: 周六 | O3: 周日 | P3: 汇总
H4: 售价
H5: 推广费用
H6: 流量
H7: 转化率
H8: ROI
H9: 成交额
H11: 售价
H12: 推广费用
H13: 流量
H14: 转化率
H15: ROI
H16: 成交额

Sheet 店铺月度自诊模板
A1: 商家名称 | B1: 主营类目 | C1: 主营商品 | D1: 诊断时间 | E1: 诊断周期 | F1: 竞品店铺
A5: 店铺基本情况分析
A6: 月销件数
A7: 月转化率
A8: 月客单价
A9: 上新spu数
A10: 聚划算单品/品牌团参团情况
A13: 数据详情解读
A14: 成交额相关 | B14: 成交额 | C14: 客单价 | D14: 客件数 | E14: 期内未付款流失交易额 | F14: 流量TOP10产品成交金额
A16: 店内流量 | B16: 店铺UV | C16: 店铺PV | D16: 宝贝IPV_UV | E16: 支付宝成交金额TOP10宝贝IPV | F16: 支付宝成交金额TOP10宝贝IPV-UV | G16: 自主访问PV
A18: 流量结构 | B18: 淘宝搜索PV | C18: 天猫搜索PV | D18: 直通车PV | E18: 自主访问店铺的PV | F18: 淘客PV | G18: 钻展PV | H18: 聚划算PV
A20: 视觉相关 | B20: 日均访问深度 | C20: 店铺浏览转化率 | D20: Detail页面跳失率 | E20: 店铺首页跳失率 | F20: 首页平均停留时间
A22: 营销相关 | B22: 成交转化率 | C22: 人均支付宝购买件数 | D22: 客单价 | E22: 购买UV | F22: UV价值 | G22: 询单转化率 | H22: 期内熟客数 | I22: 期内熟客率
A24: 店铺相关 | B24: 退款率 | C24: DSR均值 | D24: 描述相符dsr | E24: 卖家服务dsr | F24: 发货速度dsr | H24: 退款纠纷率 | I24: 发货时长
A29: 店铺问题总结
A30: 问题模块 | B30: 问题细分 | C30: 问题描述
A31: 例：客单价低 | B31: 客件数低
B32: 熟客率低
B33: 货单价低
A36: ▲改进计划
A37: 事项 | B37: 时间 | C37: 内容 | H37: 优先级 | I37: 完成情况
A38: 例：老客维护 | B38: 2014-09-01 | C38: 提交维护规划，包括客户分层、对应营销策略、执行时间表 | H38: P1 | I38: 未出第一版方案
B74: UV：即Unique Visitors，也就是访问者(独立访问者)，不可以累加或相减。
B75: IPV：商品详细页面的PV，也称Detail PV，页面url内带有item-detail这个关键词。
B76: IPV UV：浏览过商品详情页面的访问者(独立访问者)

Sheet Sheet1
A1: 1月 | B1: 2月 | C1: 3月 | D1: 4月 | E1: 5月 | F1: 6月 | G1: 7月 | H1: 8月 | I1: 9月 | J1: 10月 | K1: 11月 | L1: 12月 | O1: 20000000
A2: 0.08 | B2: 0.03 | C2: 0.06 | D2: 0.06 | E2: 0.06 | F2: 0.07 | G2: 0.06 | H2: 0.06 | I2: 0.08 | J2: 0.12 | K2: 0.18 | L2: 0.14
A3: =O1*A2 -> 1600000 | B3: =O1*B2 -> 600000 | C3: =O1*C2 -> 1200000 | D3: =O1*D2 -> 1200000 | E3: =O1*E2 -> 1200000 | F3: =O1*F2 -> 1400000 | G3: =O1*G2 -> 1200000 | H3: =O1*H2 -> 1200000 | I3: =O1*I2 -> 1600000 | J3: =O1*J2 -> 2400000 | K3: =O1*K2 -> 3600000 | L3: =O1*L2 -> 2800000
A5: 1600000 | B5: 600000 | C5: 1200000 | D5: 1200000 | E5: 1200000 | F5: 1400000 | G5: 120000 | H5: 1200000 | I5: 1600000 | J5: 2400000 | K5: 3600000 | L5: 2800000
B11: 1月 | C11: 2月 | D11: 3月 | E11: 4月 | F11: 5月 | G11: 6月 | H11: 7月 | I11: 8月 | J11: 9月 | K11: 10月 | L11: 11月 | M11: 12月
A12: 访客 | B12: 424000 | C12: 204000 | D12: 332800 | E12: 344500 | F12: 382500 | G12: 425000 | H12: 396400 | I12: 356000 | J12: 393200 | K12: 561300 | L12: 755700 | M12: 663000
A13: 直通车 | B13: 0.23 | C13: 0.24 | D13: 0.22 | E13: 0.22 | F13: 0.23 | G13: 0.22 | H13: 0.24 | I13: 0.24 | J13: 0.23 | K13: 0.22 | L13: 0.22 | M13: 0.22
A14: 钻展 | B14: 0.26 | C14: 0.27 | D14: 0.26 | E14: 0.26 | F14: 0.26 | G14: 0.26 | H14: 0.28 | I14: 0.28 | J14: 0.26 | K14: 0.26 | L14: 0.23 | M14: 0.26
A15: 直通车 | B15: =B12*B13 -> 97520 | C15: =C12*C13 -> 48960 | D15: =D12*D13 -> 73216 | E15: 75790 | F15: 87975 | G15: 93500 | H15: 95136 | I15: 85440 | J15: 90436 | K15: 123486 | L15: 166254 | M15: 145860
A16: 钻展 | B16: =B12*B14 -> 110240 | C16: =C12*C14 -> 55080 | D16: =D12*D14 -> 86528 | E16: 89570 | F16: 99450 | G16: 110500 | H16: 110992 | I16: 99680 | J16: 102232 | K16: 145938 | L16: 173811 | M16: 172380
A17: 直通车 | B17: 1.8 | C17: 1.6 | D17: 1.8 | E17: 2 | F17: 2 | G17: 2.2 | H17: 2 | I17: 2 | J17: 2.3 | K17: 2.4 | L17: 2.4 | M17: 2.4
A18: 钻展 | B18: 0.8 | C18: 0.7 | D18: 1.2 | E18: 1.2 | F18: 1 | G18: 1 | H18: 1.4 | I18: 1.4 | J18: 1.6 | K18: 1.6 | L18: 1.6 | M18: 1.6
A19: 直通车 | B19: 17 | C19: 8 | D19: 13 | E19: 15 | F19: 18 | G19: 20 | H19: 20 | I19: 18 | J19: 20 | K19: 30 | L19: 40 | M19: 35
A20: 钻展 | B20: 10 | C20: 4 | D20: 10 | E20: 10 | F20: 10 | G20: 10 | H20: 15 | I20: 14 | J20: 15 | K20: 23 | L20: 27 | M20: 27
